[Event "*** Titled Tuesday 3|2 Blitz"]
[Site "Chess.com"]
[Date "2016.10.04"]
[Round "8"]
[White "Scott-fox21"]
[Black "GasconJR"]
[Result "0-1"]
[WhiteElo "2157"]
[BlackElo "2279"]
[TimeControl "180+2"]
[EndTime "18:48:03 PDT"]
[Termination "GasconJR won on time"]

1. d4 {[%clk 0:03:02]} 1... Nf6 {[%clk 0:02:59.4]} 2. c4 {[%clk 0:03:02.8]} 2...
b6 {[%clk 0:02:59.2]} 3. Nc3 {[%clk 0:02:59.2]} 3... Bb7 {[%clk 0:03:00.2]} 4.
Bg5 {[%clk 0:02:59.6]} 4... Ne4 {[%clk 0:02:54.2]} 5. Nxe4 {[%clk 0:02:56.4]}
5... Bxe4 {[%clk 0:02:54.2]} 6. f3 {[%clk 0:02:57.3]} 6... Bb7 {[%clk
0:02:55.6]} 7. e4 {[%clk 0:02:58.4]} 7... f6 {[%clk 0:02:52.1]} 8. Be3 {[%clk
0:02:58]} 8... e5 {[%clk 0:02:52.6]} 9. dxe5 {[%clk 0:02:54.7]} 9... Bb4+ {[%clk
0:02:51.5]} 10. Bd2 {[%clk 0:02:53.2]} 10... Bxd2+ {[%clk 0:02:52.1]} 11. Qxd2
{[%clk 0:02:55.1]} 11... fxe5 {[%clk 0:02:52.8]} 12. O-O-O {[%clk 0:02:35.8]}
12... O-O {[%clk 0:02:52]} 13. Nh3 {[%clk 0:02:32.4]} 13... d6 {[%clk
0:02:28.9]} 14. c5 {[%clk 0:02:13.3]} 14... bxc5 {[%clk 0:02:28.6]} 15. Bc4+
{[%clk 0:02:13.5]} 15... Kh8 {[%clk 0:02:29.8]} 16. Ng5 {[%clk 0:02:08.9]} 16...
Nc6 {[%clk 0:02:31.2]} 17. Ne6 {[%clk 0:02:01.8]} 17... Qe7 {[%clk 0:02:31.5]}
18. Nxf8 {[%clk 0:02:03.2]} 18... Rxf8 {[%clk 0:02:31.3]} 19. Bd5 {[%clk
0:01:54.3]} 19... Nd8 {[%clk 0:02:32.3]} 20. Bxb7 {[%clk 0:01:52.1]} 20... Nxb7
{[%clk 0:02:33.1]} 21. h4 {[%clk 0:01:52.8]} 21... Nd8 {[%clk 0:02:32.9]} 22. h5
{[%clk 0:01:48.1]} 22... Ne6 {[%clk 0:02:33]} 23. h6 {[%clk 0:01:39.6]} 23... g6
{[%clk 0:02:32]} 24. Qa5 {[%clk 0:01:31.9]} 24... Nd4 {[%clk 0:02:31]} 25. Qxa7
{[%clk 0:01:18.7]} 25... Qd7 {[%clk 0:02:14.7]} 26. Kb1 {[%clk 0:01:10.1]} 26...
Qc6 {[%clk 0:02:13]} 27. Qa5 {[%clk 0:00:57.3]} 27... Ra8 {[%clk 0:02:10.8]} 28.
Qc3 {[%clk 0:00:53]} 28... Qa4 {[%clk 0:02:10.8]} 29. a3 {[%clk 0:00:49.9]}
29... Rb8 {[%clk 0:02:11.6]} 30. f4 {[%clk 0:00:39.3]} 30... Rb3 {[%clk
0:02:11.2]} 31. Qd2 {[%clk 0:00:28]} 31... c4 {[%clk 0:02:08.1]} 32. Rh3 {[%clk
0:00:25.4]} 32... Rxh3 {[%clk 0:01:03.4]} 33. gxh3 {[%clk 0:00:27.3]} 33... c3
{[%clk 0:01:03.4]} 0-1

[Event "*** Titled Tuesday 3|2 Blitz"]
[Site "Chess.com"]
[Date "2016.10.04"]
[Round "8"]
[White "GulamaliRises"]
[Black "nonscitis"]
[Result "1-0"]
[WhiteElo "2469"]
[BlackElo "2304"]
[TimeControl "180+2"]
[EndTime "18:48:35 PDT"]
[Termination "GulamaliRises won by resignation"]

1. e4 {[%clk 0:03:02]} 1... c5 {[%clk 0:02:54.9]} 2. Nf3 {[%clk 0:03:01.2]} 2...
d6 {[%clk 0:02:52.3]} 3. d4 {[%clk 0:03:02.2]} 3... cxd4 {[%clk 0:02:46.1]} 4.
Nxd4 {[%clk 0:03:04.1]} 4... Nf6 {[%clk 0:02:46.7]} 5. Nc3 {[%clk 0:03:05.5]}
5... a6 {[%clk 0:02:41]} 6. Bg5 {[%clk 0:02:59]} 6... Nbd7 {[%clk 0:02:39.8]} 7.
Qe2 {[%clk 0:02:52.4]} 7... Qc7 {[%clk 0:02:36]} 8. f4 {[%clk 0:02:50]} 8... h6
{[%clk 0:02:34.5]} 9. Bxf6 {[%clk 0:02:24.9]} 9... Nxf6 {[%clk 0:02:31.3]} 10.
e5 {[%clk 0:02:00.7]} 10... dxe5 {[%clk 0:02:28.3]} 11. fxe5 {[%clk 0:02:02.6]}
11... Ng4 {[%clk 0:02:21.9]} 12. e6 {[%clk 0:01:58.5]} 12... Qe5 {[%clk
0:02:03.6]} 13. exf7+ {[%clk 0:01:57]} 13... Kxf7 {[%clk 0:02:03.9]} 14. O-O-O
{[%clk 0:01:40.1]} 14... Qe3+ {[%clk 0:01:51.5]} 15. Kb1 {[%clk 0:01:34.3]}
15... Qxe2 {[%clk 0:01:52.1]} 16. Bxe2 {[%clk 0:01:35.7]} 16... Nf6 {[%clk
0:01:46.2]} 17. Bc4+ {[%clk 0:01:35]} 17... Kg6 {[%clk 0:01:44.6]} 18. Be6
{[%clk 0:01:17.7]} 18... b5 {[%clk 0:01:42.4]} 19. Rhe1 {[%clk 0:01:06.8]} 19...
Bb7 {[%clk 0:01:39.6]} 20. a4 {[%clk 0:00:26.6]} 20... b4 {[%clk 0:01:38.1]} 21.
Nce2 {[%clk 0:00:27.9]} 21... Kh7 {[%clk 0:01:32.9]} 22. Nf4 {[%clk 0:00:28.9]}
22... Bc8 {[%clk 0:01:24.5]} 23. Nc6 {[%clk 0:00:21.5]} 23... Bxe6 {[%clk
0:01:00.7]} 24. Nxe6 {[%clk 0:00:20.3]} 24... Ng8 {[%clk 0:00:58.2]} 25. Nxb4
{[%clk 0:00:14.3]} 25... a5 {[%clk 0:00:58.2]} 26. Nc6 {[%clk 0:00:15.3]} 26...
Kg6 {[%clk 0:00:53.9]} 27. Rd5 {[%clk 0:00:12]} 27... Nf6 {[%clk 0:00:53.3]} 28.
Rxa5 {[%clk 0:00:12.9]} 28... Rxa5 {[%clk 0:00:51.7]} 29. Nxa5 {[%clk
0:00:14.8]} 29... Kf7 {[%clk 0:00:52.9]} 30. Nc6 {[%clk 0:00:15.6]} 30... g5
{[%clk 0:00:53.1]} 31. a5 {[%clk 0:00:14.9]} 31... Bg7 {[%clk 0:00:51.7]} 32.
Nxg7 {[%clk 0:00:14.5]} 32... Kxg7 {[%clk 0:00:53.6]} 33. Rxe7+ {[%clk
0:00:15.7]} 33... Kg6 {[%clk 0:00:54.4]} 34. a6 {[%clk 0:00:17.6]} 34... Nd5
{[%clk 0:00:53.6]} 35. Rd7 {[%clk 0:00:16.8]} 35... Nf4 {[%clk 0:00:53.4]} 36.
g3 {[%clk 0:00:16.2]} 36... Ne6 {[%clk 0:00:53.6]} 37. a7 {[%clk 0:00:16.6]}
37... Ra8 {[%clk 0:00:52.3]} 38. b4 {[%clk 0:00:17.7]} 38... Kf6 {[%clk
0:00:51.2]} 39. Rb7 {[%clk 0:00:17.4]} 39... h5 {[%clk 0:00:47]} 40. b5 {[%clk
0:00:18.2]} 40... Nc5 {[%clk 0:00:47.6]} 41. Rb8 {[%clk 0:00:18.9]} 1-0

[Event "*** Titled Tuesday 3|2 Blitz"]
[Site "Chess.com"]
[Date "2016.10.04"]
[Round "8"]
[White "maciek_92"]
[Black "daro94"]
[Result "0-1"]
[WhiteElo "2624"]
[BlackElo "2689"]
[TimeControl "180+2"]
[EndTime "18:49:16 PDT"]
[Termination "daro94 won by resignation"]

1. c4 {[%clk 0:03:01.9]} 1... e6 {[%clk 0:02:57.9]} 2. Nf3 {[%clk 0:03:02.8]}
2... d5 {[%clk 0:02:59.5]} 3. d4 {[%clk 0:03:02]} 3... Nf6 {[%clk 0:03:01]} 4.
Nc3 {[%clk 0:03:03.3]} 4... Nbd7 {[%clk 0:02:57.2]} 5. cxd5 {[%clk 0:02:59.3]}
5... exd5 {[%clk 0:02:57.9]} 6. Bg5 {[%clk 0:03:00.1]} 6... h6 {[%clk
0:02:52.7]} 7. Bh4 {[%clk 0:02:59.6]} 7... Bb4 {[%clk 0:02:50.7]} 8. e3 {[%clk
0:02:51.6]} 8... g5 {[%clk 0:02:42.7]} 9. Bg3 {[%clk 0:02:51.9]} 9... Ne4 {[%clk
0:02:44.3]} 10. Qc2 {[%clk 0:02:34.4]} 10... h5 {[%clk 0:02:12.7]} 11. Nd2
{[%clk 0:02:34.5]} 11... Nxd2 {[%clk 0:01:32]} 12. Kxd2 {[%clk 0:02:34.8]} 12...
h4 {[%clk 0:01:20.8]} 13. Be5 {[%clk 0:02:35.7]} 13... Nxe5 {[%clk 0:01:15.7]}
14. dxe5 {[%clk 0:02:36.3]} 14... c6 {[%clk 0:01:12.8]} 15. a3 {[%clk
0:02:29.3]} 15... Ba5 {[%clk 0:01:12.5]} 16. b4 {[%clk 0:02:29.3]} 16... Bc7
{[%clk 0:01:11.8]} 17. f4 {[%clk 0:02:26.2]} 17... d4 {[%clk 0:01:06.4]} 18. Ne4
{[%clk 0:01:18.5]} 18... dxe3+ {[%clk 0:01:07.4]} 19. Ke1 {[%clk 0:00:41.4]}
19... gxf4 {[%clk 0:00:34.9]} 20. Rd1 {[%clk 0:00:42.2]} 20... Qe7 {[%clk
0:00:35.1]} 21. Nd6+ {[%clk 0:00:43.3]} 21... Kf8 {[%clk 0:00:34.4]} 22. Bc4
{[%clk 0:00:37.7]} 22... Be6 {[%clk 0:00:30.6]} 23. Rf1 {[%clk 0:00:35.4]} 23...
Rd8 {[%clk 0:00:12.2]} 24. Qc3 {[%clk 0:00:15.8]} 24... Rg8 {[%clk 0:00:08.1]}
25. Qd4 {[%clk 0:00:11.1]} 25... Rxg2 {[%clk 0:00:05.9]} 26. Qxf4 {[%clk
0:00:09.7]} 26... Bxd6 {[%clk 0:00:04.2]} 27. exd6 {[%clk 0:00:10.1]} 27... Qd7
{[%clk 0:00:04.5]} 28. Qh6+ {[%clk 0:00:05.3]} 28... Kg8 {[%clk 0:00:06]} 29.
Rf3 {[%clk 0:00:03.4]} 29... Rg6 {[%clk 0:00:06.8]} 30. Qxh4 {[%clk 0:00:04]}
30... Bxc4 {[%clk 0:00:05.5]} 31. Qxc4 {[%clk 0:00:03.4]} 31... Re8 {[%clk
0:00:07]} 32. Rg3 {[%clk 0:00:03.8]} 32... Rxg3 {[%clk 0:00:06.9]} 33. hxg3
{[%clk 0:00:05.7]} 33... e2 {[%clk 0:00:07.6]} 34. Rd4 {[%clk 0:00:06.2]} 34...
Qh3 {[%clk 0:00:07.6]} 35. Rg4+ {[%clk 0:00:07.1]} 35... Kf8 {[%clk 0:00:08.6]}
36. Rf4 {[%clk 0:00:02.9]} 36... Qh1+ {[%clk 0:00:09.6]} 37. Kd2 {[%clk
0:00:04.4]} 37... e1=Q+ {[%clk 0:00:09.7]} 38. Kc2 {[%clk 0:00:06]} 38... Qc1+
{[%clk 0:00:11]} 39. Kb3 {[%clk 0:00:07.1]} 39... Qxc4+ {[%clk 0:00:12.3]} 0-1

[Event "*** Titled Tuesday 3|2 Blitz"]
[Site "Chess.com"]
[Date "2016.10.04"]
[Round "8"]
[White "psv98"]
[Black "Paralinch"]
[Result "1/2-1/2"]
[WhiteElo "2602"]
[BlackElo "2625"]
[TimeControl "180+2"]
[EndTime "18:49:33 PDT"]
[Termination "Game drawn by repetition"]

1. Nf3 {[%clk 0:03:01.9]} 1... d5 {[%clk 0:02:58.8]} 2. c4 {[%clk 0:03:01.9]}
2... c6 {[%clk 0:03:00]} 3. e3 {[%clk 0:03:02]} 3... Nf6 {[%clk 0:03:00.8]} 4.
Nc3 {[%clk 0:03:03.3]} 4... a6 {[%clk 0:03:01.8]} 5. d4 {[%clk 0:02:59.5]} 5...
b5 {[%clk 0:03:02.3]} 6. cxd5 {[%clk 0:02:55.9]} 6... cxd5 {[%clk 0:03:03.1]} 7.
Bd3 {[%clk 0:02:56.4]} 7... e6 {[%clk 0:03:03.9]} 8. O-O {[%clk 0:02:55.8]} 8...
Bb7 {[%clk 0:03:05.2]} 9. Ne5 {[%clk 0:02:51.7]} 9... Nbd7 {[%clk 0:03:06.2]}
10. f4 {[%clk 0:02:51.3]} 10... Be7 {[%clk 0:03:05.4]} 11. Bd2 {[%clk
0:02:51.9]} 11... O-O {[%clk 0:03:06.2]} 12. Qf3 {[%clk 0:02:49.7]} 12... b4
{[%clk 0:03:06.7]} 13. Ne2 {[%clk 0:02:41.9]} 13... Ne4 {[%clk 0:03:07.7]} 14.
Be1 {[%clk 0:02:31.9]} 14... f5 {[%clk 0:03:08.6]} 15. g4 {[%clk 0:02:10.3]}
15... Nxe5 {[%clk 0:03:03.1]} 16. fxe5 {[%clk 0:02:11.4]} 16... fxg4 {[%clk
0:02:57]} 17. Qxg4 {[%clk 0:02:12.7]} 17... Rxf1+ {[%clk 0:02:57.1]} 18. Kxf1
{[%clk 0:02:14.6]} 18... Qf8+ {[%clk 0:02:45.6]} 19. Kg1 {[%clk 0:02:14.3]}
19... Qf5 {[%clk 0:02:47.2]} 20. Qxf5 {[%clk 0:02:03.4]} 20... exf5 {[%clk
0:02:49.1]} 21. Rc1 {[%clk 0:01:38.5]} 21... Rc8 {[%clk 0:02:49.4]} 22. Rxc8+
{[%clk 0:01:36.9]} 22... Bxc8 {[%clk 0:02:51.3]} 23. Nf4 {[%clk 0:01:21.3]}
23... Bb7 {[%clk 0:02:52.2]} 24. Bc2 {[%clk 0:01:22.9]} 24... g5 {[%clk
0:02:51.3]} 25. Nd3 {[%clk 0:01:01.2]} 25... a5 {[%clk 0:02:52]} 26. Nf2 {[%clk
0:01:00.9]} 26... Kf7 {[%clk 0:02:49.2]} 27. Nxe4 {[%clk 0:00:55.6]} 27... fxe4
{[%clk 0:02:50.2]} 28. Bd1 {[%clk 0:00:56.5]} 28... Bc8 {[%clk 0:02:42.7]} 29.
Bh5+ {[%clk 0:00:57.6]} 29... Kg7 {[%clk 0:02:41]} 30. Kg2 {[%clk 0:00:58.9]}
30... a4 {[%clk 0:02:14.2]} 31. b3 {[%clk 0:00:54]} 31... a3 {[%clk 0:02:10.1]}
32. Be2 {[%clk 0:00:55.1]} 32... Kg6 {[%clk 0:02:08.7]} 33. Bb5 {[%clk
0:00:54.2]} 33... h5 {[%clk 0:02:06.4]} 34. Be8+ {[%clk 0:00:53.3]} 34... Kh6
{[%clk 0:01:53.6]} 35. Bf7 {[%clk 0:00:54.3]} 35... Bb7 {[%clk 0:01:54.8]} 36.
Kg3 {[%clk 0:00:26.4]} 36... g4 {[%clk 0:01:54]} 37. h4 {[%clk 0:00:21.5]} 37...
gxh3 {[%clk 0:01:44.2]} 38. Kxh3 {[%clk 0:00:23.4]} 38... Bg5 {[%clk 0:01:19.3]}
39. Bf2 {[%clk 0:00:14.2]} 39... Bc6 {[%clk 0:01:01.8]} 40. Kg2 {[%clk
0:00:09.2]} 40... h4 {[%clk 0:00:56.3]} 41. Kh3 {[%clk 0:00:10.3]} 41... Kg7
{[%clk 0:00:57.2]} 42. Be6 {[%clk 0:00:09.5]} 42... Kh6 {[%clk 0:00:41.2]} 43.
Bf7 {[%clk 0:00:08.9]} 43... Kg7 {[%clk 0:00:41]} 44. Be6 {[%clk 0:00:09.6]}
44... Kh6 {[%clk 0:00:39.3]} 45. Kg4 {[%clk 0:00:10.4]} 45... Kg6 {[%clk
0:00:40.5]} 46. Bf5+ {[%clk 0:00:09.6]} 46... Kh6 {[%clk 0:00:41.5]} 47. Be6
{[%clk 0:00:09.1]} 47... Kg6 {[%clk 0:00:42.7]} 48. Bf5+ {[%clk 0:00:07.7]}
48... Kh6 {[%clk 0:00:44.1]} 49. Be6 {[%clk 0:00:09.2]} 49... Kg6 {[%clk
0:00:45.5]} 50. Bf5+ {[%clk 0:00:06.2]} 1/2-1/2

[Event "*** Titled Tuesday 3|2 Blitz"]
[Site "Chess.com"]
[Date "2016.10.04"]
[Round "8"]
[White "Kubas1010"]
[Black "michaelk123"]
[Result "1-0"]
[WhiteElo "2455"]
[BlackElo "2241"]
[TimeControl "180+2"]
[EndTime "18:49:40 PDT"]
[Termination "Kubas1010 won by resignation"]

1. e4 {[%clk 0:03:01.9]} 1... c5 {[%clk 0:03:00.6]} 2. Nf3 {[%clk 0:03:01.7]}
2... e6 {[%clk 0:02:57.4]} 3. g3 {[%clk 0:03:02.3]} 3... d5 {[%clk 0:02:48]} 4.
exd5 {[%clk 0:03:03]} 4... exd5 {[%clk 0:02:47]} 5. d4 {[%clk 0:03:03.2]} 5...
Nc6 {[%clk 0:02:46.8]} 6. Bg2 {[%clk 0:03:03.5]} 6... Bg4 {[%clk 0:02:45.1]} 7.
O-O {[%clk 0:03:04.2]} 7... Nxd4 {[%clk 0:02:22.5]} 8. Qe1+ {[%clk 0:03:04.5]}
8... Ne6 {[%clk 0:02:23.3]} 9. Ne5 {[%clk 0:03:04.8]} 9... Bf5 {[%clk 0:02:21]}
10. c4 {[%clk 0:03:02.2]} 10... Nf6 {[%clk 0:02:03]} 11. Nc3 {[%clk 0:03:00.5]}
11... d4 {[%clk 0:01:58.1]} 12. Nd5 {[%clk 0:02:58]} 12... Bd6 {[%clk
0:01:51.9]} 13. Nxf6+ {[%clk 0:02:55.7]} 13... Qxf6 {[%clk 0:01:36.8]} 14. Bxb7
{[%clk 0:02:55.4]} 14... Bxe5 {[%clk 0:01:23]} 15. Bxa8 {[%clk 0:02:55.7]} 15...
O-O {[%clk 0:01:10.2]} 16. f4 {[%clk 0:02:54.3]} 16... Bd3 {[%clk 0:00:51.8]}
17. Rf3 {[%clk 0:02:48.1]} 17... Rxa8 {[%clk 0:00:35]} 18. Rxd3 {[%clk
0:02:44.9]} 18... Qg6 {[%clk 0:00:25.1]} 19. Rf3 {[%clk 0:02:41.8]} 19... Bf6
{[%clk 0:00:21.4]} 20. f5 {[%clk 0:02:35.7]} 20... Qg4 {[%clk 0:00:22.1]} 21.
Kg2 {[%clk 0:02:33.6]} 21... Ng5 {[%clk 0:00:19.6]} 22. Bxg5 {[%clk 0:02:22.3]}
22... Bxg5 {[%clk 0:00:14.4]} 23. h3 {[%clk 0:02:22.9]} 23... Qh5 {[%clk
0:00:14]} 24. Qe4 {[%clk 0:02:23.7]} 24... Rb8 {[%clk 0:00:13.5]} 25. b3 {[%clk
0:02:23.2]} 25... Be3 {[%clk 0:00:13]} 26. Re1 {[%clk 0:02:11.3]} 26... Qh6
{[%clk 0:00:13.5]} 27. Rfxe3 {[%clk 0:02:10]} 27... dxe3 {[%clk 0:00:13.6]} 28.
Rxe3 {[%clk 0:02:11.9]} 28... Qd6 {[%clk 0:00:05.6]} 29. Qe8+ {[%clk 0:02:06.2]}
29... Qf8 {[%clk 0:00:06.6]} 30. Qxf8+ {[%clk 0:02:06.2]} 30... Kxf8 {[%clk
0:00:07.9]} 31. Rd3 {[%clk 0:02:07.1]} 31... Rb6 {[%clk 0:00:06.2]} 32. Kf3
{[%clk 0:02:04.2]} 32... Ra6 {[%clk 0:00:06.8]} 33. Rd2 {[%clk 0:02:05.6]} 33...
Ke7 {[%clk 0:00:07.4]} 34. Ke4 {[%clk 0:02:06.9]} 34... g6 {[%clk 0:00:06.2]}
35. g4 {[%clk 0:02:05.2]} 35... gxf5+ {[%clk 0:00:07]} 36. Kxf5 {[%clk
0:02:06.6]} 36... Rf6+ {[%clk 0:00:06]} 37. Ke5 {[%clk 0:02:07.4]} 37... Re6+
{[%clk 0:00:07]} 38. Kf4 {[%clk 0:02:07.9]} 38... Rf6+ {[%clk 0:00:06.4]} 39.
Ke3 {[%clk 0:02:08.1]} 39... Ra6 {[%clk 0:00:06.3]} 40. Kd3 {[%clk 0:02:05.2]}
40... Ke6 {[%clk 0:00:06.2]} 41. Re2+ {[%clk 0:02:05.3]} 41... Kd6 {[%clk
0:00:06.8]} 42. Kc3 {[%clk 0:02:05.8]} 42... Rb6 {[%clk 0:00:06.7]} 43. Rf2
{[%clk 0:02:06.3]} 43... Ke6 {[%clk 0:00:07.5]} 44. Rf5 {[%clk 0:02:07.2]} 44...
Ra6 {[%clk 0:00:06.9]} 45. Rh5 {[%clk 0:02:07.3]} 45... Rxa2 {[%clk 0:00:07.4]}
46. Rxh7 {[%clk 0:02:06.3]} 46... Rf2 {[%clk 0:00:07.1]} 47. Rh6+ {[%clk
0:02:03.8]} 47... Ke5 {[%clk 0:00:06.8]} 48. Rh5+ {[%clk 0:02:04.9]} 48... Kd6
{[%clk 0:00:06.4]} 49. Rd5+ {[%clk 0:02:04.8]} 49... Kc6 {[%clk 0:00:06.4]} 50.
Rf5 {[%clk 0:02:05.9]} 50... Rh2 {[%clk 0:00:03.7]} 51. Rf6+ {[%clk 0:02:06.2]}
51... Kd7 {[%clk 0:00:04.7]} 52. Rxf7+ {[%clk 0:02:07.6]} 52... Ke6 {[%clk
0:00:06.4]} 53. Rh7 {[%clk 0:02:05.9]} 53... a5 {[%clk 0:00:05.3]} 54. Rh5
{[%clk 0:02:02.2]} 54... Rh1 {[%clk 0:00:04.5]} 55. Rxc5 {[%clk 0:01:58.1]}
55... Rxh3+ {[%clk 0:00:05.8]} 56. Kb2 {[%clk 0:01:59.4]} 56... Rg3 {[%clk
0:00:06.4]} 57. g5 {[%clk 0:02:00.3]} 57... a4 {[%clk 0:00:06.9]} 58. bxa4
{[%clk 0:01:59.8]} 58... Kd6 {[%clk 0:00:08.3]} 59. Rd5+ {[%clk 0:02:00.5]}
59... Kc6 {[%clk 0:00:09.5]} 60. a5 {[%clk 0:02:01.5]} 60... Kc7 {[%clk
0:00:08.1]} 61. Kc2 {[%clk 0:01:59.9]} 61... Kc6 {[%clk 0:00:09.4]} 62. Kd2
{[%clk 0:02:01.3]} 62... Kc7 {[%clk 0:00:10]} 63. Ke2 {[%clk 0:02:02.3]} 63...
Kc6 {[%clk 0:00:11.5]} 64. Kf2 {[%clk 0:02:03.3]} 64... Rc3 {[%clk 0:00:12.7]}
65. g6 {[%clk 0:02:02.7]} 65... Rxc4 {[%clk 0:00:12.7]} 66. Rg5 {[%clk
0:02:03.7]} 66... Rf4+ {[%clk 0:00:11.7]} 67. Kg3 {[%clk 0:02:04.4]} 67... Rf8
{[%clk 0:00:12.7]} 68. g7 {[%clk 0:02:05.6]} 68... Rg8 {[%clk 0:00:14.4]} 69.
Kg4 {[%clk 0:02:07.2]} 69... Kd6 {[%clk 0:00:15.3]} 70. Kf5 {[%clk 0:02:07.8]}
70... Ke7 {[%clk 0:00:15.1]} 71. Kg6 {[%clk 0:02:09]} 71... Ke6 {[%clk
0:00:16.2]} 72. Kh7 {[%clk 0:02:09.5]} 72... Kf7 {[%clk 0:00:15.5]} 73. Rf5+
{[%clk 0:02:10.3]} 73... Ke6 {[%clk 0:00:16.5]} 74. Kxg8 {[%clk 0:02:11.6]} 1-0

[Event "*** Titled Tuesday 3|2 Blitz"]
[Site "Chess.com"]
[Date "2016.10.04"]
[Round "8"]
[White "johnathan113"]
[Black "Fins0905"]
[Result "1-0"]
[WhiteElo "2305"]
[BlackElo "2406"]
[TimeControl "180+2"]
[EndTime "18:49:46 PDT"]
[Termination "johnathan113 won by resignation"]

1. e4 {[%clk 0:03:02]} 1... d5 {[%clk 0:02:59.4]} 2. exd5 {[%clk 0:03:02.9]}
2... Qxd5 {[%clk 0:02:58.9]} 3. Nc3 {[%clk 0:03:03.7]} 3... Qa5 {[%clk
0:02:57.5]} 4. d4 {[%clk 0:03:04.8]} 4... c6 {[%clk 0:02:58.2]} 5. Nf3 {[%clk
0:03:06.1]} 5... Nf6 {[%clk 0:02:58.9]} 6. Bc4 {[%clk 0:03:07.2]} 6... Bf5
{[%clk 0:02:59.4]} 7. Bd2 {[%clk 0:03:08]} 7... e6 {[%clk 0:03:00.3]} 8. Qe2
{[%clk 0:03:09.3]} 8... Bb4 {[%clk 0:03:00.9]} 9. a3 {[%clk 0:03:10.4]} 9...
Nbd7 {[%clk 0:02:59.6]} 10. Ba2 {[%clk 0:03:10.5]} 10... Bxc3 {[%clk 0:02:59.5]}
11. Bxc3 {[%clk 0:03:12.4]} 11... Qc7 {[%clk 0:03:00.4]} 12. O-O-O {[%clk
0:03:13.7]} 12... O-O-O {[%clk 0:02:59.7]} 13. Ne5 {[%clk 0:03:11.6]} 13... Nxe5
{[%clk 0:02:59.6]} 14. dxe5 {[%clk 0:03:13.5]} 14... Ne4 {[%clk 0:02:56.1]} 15.
Qe3 {[%clk 0:03:10.3]} 15... Nxc3 {[%clk 0:02:50.4]} 16. Qxc3 {[%clk 0:03:12.2]}
16... Qb6 {[%clk 0:02:49.3]} 17. f3 {[%clk 0:03:10.3]} 17... Qf2 {[%clk
0:02:40.4]} 18. g4 {[%clk 0:03:04.4]} 18... Bg6 {[%clk 0:02:38.6]} 19. Bb3
{[%clk 0:02:54.3]} 19... h5 {[%clk 0:02:31.1]} 20. Rd6 {[%clk 0:02:33.6]} 20...
hxg4 {[%clk 0:02:20]} 21. fxg4 {[%clk 0:02:27.5]} 21... Rxh2 {[%clk 0:02:09]}
22. Rhd1 {[%clk 0:01:51.8]} 22... Rhh8 {[%clk 0:01:43.8]} 23. a4 {[%clk
0:01:32.1]} 23... Rxd6 {[%clk 0:01:12.1]} 24. exd6 {[%clk 0:01:31.6]} 24... Qf4+
{[%clk 0:01:05.3]} 25. Kb1 {[%clk 0:01:32.5]} 25... Rd8 {[%clk 0:00:49.5]} 26.
Qc5 {[%clk 0:01:02.5]} 26... a6 {[%clk 0:00:37.8]} 27. Rd4 {[%clk 0:00:44.8]}
27... Qf1+ {[%clk 0:00:32.2]} 28. Ka2 {[%clk 0:00:46]} 28... Kb8 {[%clk
0:00:33.1]} 29. d7 {[%clk 0:00:42.3]} 29... Ka8 {[%clk 0:00:19.8]} 30. Qb6
{[%clk 0:00:40.7]} 30... Qf6 {[%clk 0:00:19.3]} 31. Bc4 {[%clk 0:00:33]} 31...
Qe7 {[%clk 0:00:18.5]} 32. Bxa6 {[%clk 0:00:33.9]} 32... Rxd7 {[%clk 0:00:18.4]}
33. Bxb7+ {[%clk 0:00:27.5]} 33... Rxb7 {[%clk 0:00:13]} 34. Rd8+ {[%clk
0:00:28.6]} 34... Qxd8 {[%clk 0:00:13.5]} 35. Qxd8+ {[%clk 0:00:30.5]} 35... Ka7
{[%clk 0:00:14]} 36. Qd4+ {[%clk 0:00:31.6]} 36... Kb8 {[%clk 0:00:14.3]} 37. c3
{[%clk 0:00:27.3]} 37... Bc2 {[%clk 0:00:13.1]} 38. a5 {[%clk 0:00:27.2]} 38...
Bb3+ {[%clk 0:00:13.8]} 39. Ka3 {[%clk 0:00:28.4]} 39... f6 {[%clk 0:00:10.6]}
40. a6 {[%clk 0:00:27.7]} 40... Rb5 {[%clk 0:00:10.7]} 41. c4 {[%clk 0:00:20.2]}
41... Bxc4 {[%clk 0:00:09.5]} 42. Qxc4 {[%clk 0:00:20.3]} 42... Kc7 {[%clk
0:00:10]} 43. Qa4 {[%clk 0:00:16.8]} 43... Kb8 {[%clk 0:00:10.1]} 44. a7+ {[%clk
0:00:17.4]} 44... Ka8 {[%clk 0:00:11.5]} 45. Qa6 {[%clk 0:00:18.5]} 45... Rb7
{[%clk 0:00:12.6]} 46. Qxc6 {[%clk 0:00:17.9]} 46... e5 {[%clk 0:00:14.1]} 47.
b4 {[%clk 0:00:17]} 47... Kxa7 {[%clk 0:00:15.7]} 48. b5 {[%clk 0:00:18.6]}
48... Kb8 {[%clk 0:00:14.7]} 49. b6 {[%clk 0:00:19.1]} 1-0